[Event "DLM Youth 2024"]
[Site "Tuebingen"]
[Date "2024.10.03"]
[Round "1"]
[White "Sauer, Tim"]
[Black "Sheng, Ming"]
[Result "0-1"]
[ECO "A14"]
[WhiteElo "2081"]
[BlackElo "2007"]
[Annotator "RC"]
[PlyCount "88"]
[EventDate "2024.10.03"]
[EventType "team-swiss"]
[EventRounds "7"]
[EventCountry "GER"]
[SourceTitle "playchess.com"]
[Source "ChessBase"]
[SourceQuality "1"]
[TimeControl "40/5400+30:1800+30"]

1. c4 {[%emt 0:00:02]} e6 {[%emt 0:00:07]} 2. Nf3 {[%emt 0:00:09]} Nf6 {[%emt 0:00:06]} 3. b3 {[%emt 0:00:23]} d5 {[%emt 0:00:14]} 4. Bb2 {[%emt 0:00:12]} Be7 {[%emt 0:00:06]} 5. e3 {[%emt 0:01:01]} O-O {[%emt 0:00:13]} 6. Nc3 {[%emt 0:00:59]} dxc4 {[%emt 0:00:25]} 7. bxc4 {[%emt 0:01:29]} c5 {[%emt 0:00:04]} 8. g3 {[%emt 0:01:23]} b6 {[%emt 0:00:13]} 9. Bg2 {[%emt 0:00:05]} Bb7 {[%emt 0:00:04]} 10. O-O {[%emt 0:00:09]} Nc6 {[%emt 0:00:35]} 11. Qe2 {[%emt 0:00:37]} Qc7 {[%emt 0:00:20]} 12. Ne1 {[%emt 0:00:49]} Ne8 {[%emt 0:10:06]} 13. f4 {[%emt 0:02:10]} Nd6 {[%emt 0:00:17]} 14. g4 {[%emt 0:07:49]} Na5 {[%emt 0:07:54]} 15. d3 {[%emt 0:03:00]} a6 {[%emt 0:01:54]} 16. a4 {[%emt 0:04:09]} Rab8 {[%emt 0:00:55]} 17. e4 {[%emt 0:06:29]} Nb3 {[%emt 0:02:49]} 18. Rb1 {[%emt 0:03:41]} Nd4 {[%emt 0:03:16]} 19. Qf2 {[%emt 0:08:57]} f6 {[%emt 0:02:21]} 20. Nc2 {[%emt 0:11:25]} e5 {[%emt 0:04:39]} 21. Ne3 {[%emt 0:08:09]} Qd7 {[%emt 0:08:50]} 22. Kh1 {[%emt 0:10:27]} Bc6 {[%emt 0:05:10]} 23. fxe5 {[%emt 0:04:28]} fxe5 {[%emt 0:00:18]} 24. Qg3 {[%emt 0:00:27]} Nf7 {[%emt 0:15:22]} 25. Ned5 {[%emt 0:03:05]} Qd8 {[%emt 0:06:05]} 26. Nxe7+ {[%emt 0:11:20]} Qxe7 {[%emt 0:00:27]} 27. Nd5 {[%emt 0:01:56]} Bxd5 {[%emt 0:02:12]} 28. exd5 {[%emt 0:00:25]} Qd7 {[%emt 0:05:00]} 29. d6 {[%emt 0:05:56]} Ne2 {[%emt 0:01:07]} 30. Qe3 {[%emt 0:02:17]} Nf4 {[%emt 0:01:08]} 31. Be4 {[%emt 0:01:03]} Rbe8 {[%emt 0:08:07]} 32. Bxe5 {[%emt 0:01:15]} Nxe5 {[%emt 0:00:51]} 33. Rxf4 {[%emt 0:00:08]} Qxd6 {[%emt 0:03:58]} 34. Rbf1 {[%emt 0:01:00]} Nxg4 {[%emt 0:03:35]} 35. Qg3 {[%emt 0:00:30]} Rxf4 {[%emt 0:01:25]} 36. Rxf4 {[%emt 0:00:18]} Nf6 {[%emt 0:00:31]} 37. Qf3 {[%emt 0:00:45]} Nxe4 {[%emt 0:00:35]} 38. Rxe4 {[%emt 0:00:06]} Rf8 {[%emt 0:00:34]} 39. Qe2 {[%emt 0:00:26]} Qc6 {[%emt 0:02:29]} 40. Qg4 {[%emt 0:01:00]} Qxa4 {[%emt 0:00:55]} 41. Qe6+ {[%emt 0:30:29]} Kh8 {[%emt 0:30:16]} 42. Qe7 {[%emt 0:00:30]} Qd1+ {[%emt 0:00:40]} 43. Re1 {[%emt 0:00:30]} Rf1+ {[%emt 0:00:11]} 44. Kg2 {[%emt 0:00:08]} Qf3# {[%emt 0:00:39]} 0-1

[Event "DLM Youth 2024"]
[Site "Tuebingen"]
[Date "2024.10.03"]
[Round "1"]
[White "Bardorz, Jana"]
[Black "Rafikova, Ailin"]
[Result "1-0"]
[ECO "B13"]
[WhiteElo "2069"]
[BlackElo "1707"]
[Annotator "RC"]
[PlyCount "53"]
[EventDate "2024.10.03"]
[EventType "team-swiss"]
[EventRounds "7"]
[EventCountry "GER"]
[SourceTitle "playchess.com"]
[Source "ChessBase"]
[SourceQuality "1"]
[TimeControl "40/5400+30:1800+30"]

1. e4 {[%emt 0:00:04]} c6 {[%emt 0:00:03]} 2. d4 {[%emt 0:00:09]} d5 {[%emt 0:00:07]} 3. exd5 {[%emt 0:00:15]} cxd5 {[%emt 0:00:04]} 4. Bd3 {[%emt 0:00:14]} Nc6 {[%emt 0:02:11]} 5. c3 {[%emt 0:00:11]} Nf6 {[%emt 0:02:35]} 6. Bf4 {[%emt 0:00:23]} e6 {[%emt 0:01:50]} 7. Nf3 {[%emt 0:04:40]} Bd6 {[%emt 0:01:31]} 8. Bxd6 {[%emt 0:02:29]} Qxd6 {[%emt 0:00:08]} 9. O-O {[%emt 0:01:58]} O-O {[%emt 0:01:00]} 10. Re1 {[%emt 0:01:07]} Rb8 {[%emt 0:08:55]} 11. Qe2 {[%emt 0:06:46]} Bd7 {[%emt 0:08:21]} 12. Nbd2 {[%emt 0:01:13]} Rfc8 {[%emt 0:05:25]} 13. Ne5 {[%emt 0:02:23]} Ne7 {[%emt 0:05:13]} 14. f4 {[%emt 0:07:22]} Rc7 {[%emt 0:11:00]} 15. Rf1 {[%emt 0:07:31]} b5 {[%emt 0:15:03]} 16. a3 {[%emt 0:08:39]} a5 {[%emt 0:05:27]} 17. Nb3 {[%emt 0:02:48]} Qb6 {[%emt 0:06:56]} 18. Nc5 {[%emt 0:02:37]} Nc8 {[%emt 0:05:58]} 19. Ncxd7 {[%emt 0:04:35]} Nxd7 {[%emt 0:01:28]} 20. Bxh7+ {[%emt 0:01:16]} Kf8 {[%emt 0:02:49]} 21. Rae1 {[%emt 0:03:57]} g6 {[%emt 0:04:01]} 22. Bxg6 {[%emt 0:03:30]} fxg6 {[%emt 0:02:31]} 23. Nxg6+ {[%emt 0:00:21]} Kf7 {[%emt 0:00:41]} 24. f5 {[%emt 0:03:31]} Ne7 {[%emt 0:04:40]} 25. fxe6+ {[%emt 0:01:36]} Ke8 {[%emt 0:01:19]} 26. exd7+ {[%emt 0:00:19]} Kxd7 {[%emt 0:00:15]} 27. Qg4+ {[%emt 0:00:53]} 1-0

[Event "DLM Youth 2024"]
[Site "Tuebingen"]
[Date "2024.10.03"]
[Round "1"]
[White "Malinowsky, Levi"]
[Black "Hubert, Charlotte"]
[Result "0-1"]
[ECO "B99"]
[WhiteElo "2065"]
[BlackElo "1878"]
[Annotator "RC"]
[PlyCount "98"]
[EventDate "2024.10.03"]
[EventType "team-swiss"]
[EventRounds "7"]
[EventCountry "GER"]
[SourceTitle "playchess.com"]
[Source "ChessBase"]
[SourceQuality "1"]
[TimeControl "40/5400+30:1800+30"]

1. e4 {[%emt 0:00:04]} c5 {[%emt 0:00:12]} 2. Nf3 {[%emt 0:00:11]} d6 {[%emt 0:00:08]} 3. d4 {[%emt 0:00:09]} cxd4 {[%emt 0:00:06]} 4. Nxd4 {[%emt 0:00:09]} Nf6 {[%emt 0:00:06]} 5. Nc3 {[%emt 0:00:09]} a6 {[%emt 0:00:04]} 6. Bg5 {[%emt 0:00:20]} e6 {[%emt 0:00:15]} 7. f4 {[%emt 0:00:58]} Be7 {[%emt 0:00:08]} 8. Qf3 {[%emt 0:00:35]} Qc7 {[%emt 0:00:11]} 9. O-O-O {[%emt 0:01:13]} Nbd7 {[%emt 0:00:07]} 10. g4 {[%emt 0:02:32]} h6 {[%emt 0:03:20]} 11. Bxf6 {[%emt 0:02:21]} Bxf6 {[%emt 0:00:07]} 12. h4 {[%emt 0:03:08]} Nb6 {[%emt 0:00:22]} 13. g5 {[%emt 0:02:06]} Bxd4 {[%emt 0:00:21]} 14. Rxd4 {[%emt 0:00:03]} Qc5 {[%emt 0:00:38]} 15. Rd3 {[%emt 0:07:22]} Bd7 {[%emt 0:11:31]} 16. Bh3 {[%emt 0:03:25]} Bb5 {[%emt 0:12:53]} 17. Rdd1 {[%emt 0:10:37]} Nc4 {[%emt 0:03:41]} 18. a3 {[%emt 0:22:52]} Bd7 {[%emt 0:08:23]} 19. g6 {[%emt 0:05:32]} Rf8 {[%emt 0:16:09]} 20. gxf7+ {[%emt 0:06:44]} Rxf7 {[%emt 0:00:08]} 21. Rhe1 {[%emt 0:08:10]} O-O-O {[%emt 0:04:02]} 22. f5 {[%emt 0:11:29]} g6 {[%emt 0:05:41]} 23. Qg3 {[%emt 0:01:35]} gxf5 {[%emt 0:01:48]} 24. exf5 {[%emt 0:00:21]} exf5 {[%emt 0:01:48]} 25. Rd5 {[%emt 0:01:51]} Qb6 {[%emt 0:01:51]} 26. b3 {[%emt 0:01:25]} Ne5 {[%emt 0:01:48]} 27. Red1 {[%emt 0:01:34]} Be6 {[%emt 0:02:48]} 28. R5d4 {[%emt 0:00:34]} Qc5 {[%emt 0:09:52]} 29. Kb2 {[%emt 0:01:05]} Kb8 {[%emt 0:01:02]} 30. Qf4 {[%emt 0:00:33]} Rc7 {[%emt 0:01:41]} 31. Qg3 {[%emt 0:02:07]} f4 {[%emt 0:03:17]} 32. Rxf4 {[%emt 0:01:22]} Bxh3 {[%emt 0:00:07]} 33. Rd5 {[%emt 0:01:54]} Qc6 {[%emt 0:02:42]} 34. Qxh3 {[%emt 0:01:30]} Rdc8 {[%emt 0:00:06]} 35. Rxe5 {[%emt 0:01:27]} dxe5 {[%emt 0:00:14]} 36. Rc4 {[%emt 0:00:15]} Qd7 {[%emt 0:02:07]} 37. Qe3 {[%emt 0:00:21]} Rxc4 {[%emt 0:00:25]} 38. bxc4 {[%emt 0:00:01]} Qd4 {[%emt 0:01:06]} 39. Qxh6 {[%emt 0:00:30]} Rxc4 {[%emt 0:00:56]} 40. Qf8+ {[%emt 0:00:32]} Ka7 {[%emt 0:00:26]} 41. Qf3 {[%emt 0:30:08]} e4 {[%emt 0:30:54]} 42. Qg3 {[%emt 0:00:05]} e3 {[%emt 0:00:34]} 43. Qe1 {[%emt 0:00:11]} e2 {[%emt 0:00:09]} 44. Qxe2 {[%emt 0:01:00]} Qxc3+ {[%emt 0:00:26]} 45. Kb1 {[%emt 0:00:05]} Rc6 {[%emt 0:00:20]} 46. h5 {[%emt 0:00:35]} Rb6+ {[%emt 0:00:08]} 47. Kc1 {[%emt 0:00:06]} Qxa3+ {[%emt 0:00:25]} 48. Kd2 {[%emt 0:00:15]} Rd6+ {[%emt 0:00:21]} 49. Ke1 {[%emt 0:00:07]} Qc1+ {[%emt 0:00:11]} 0-1

[Event "DLM Youth 2024"]
[Site "Tuebingen"]
[Date "2024.10.03"]
[Round "1"]
[White "Liebold, Aaron"]
[Black "Lutz, Ruben"]
[Result "0-1"]
[ECO "B10"]
[WhiteElo "2058"]
[BlackElo "2270"]
[Annotator "RC"]
[PlyCount "80"]
[EventDate "2024.10.03"]
[EventType "team-swiss"]
[EventRounds "7"]
[EventCountry "GER"]
[SourceTitle "playchess.com"]
[Source "ChessBase"]
[SourceQuality "1"]
[TimeControl "40/5400+30:1800+30"]

1. e4 {[%emt 0:00:04]} c6 {[%emt 0:00:09]} 2. Nf3 {[%emt 0:00:08]} d5 {[%emt 0:00:07]} 3. d3 {[%emt 0:00:04]} dxe4 {[%emt 0:01:21]} 4. Ng5 {[%emt 0:00:23]} Nf6 {[%emt 0:03:59]} 5. Nxe4 {[%emt 0:00:04]} Nbd7 {[%emt 0:02:15]} 6. Nbc3 {[%emt 0:00:45]} Qc7 {[%emt 0:15:42]} 7. g3 {[%emt 0:02:23]} e5 {[%emt 0:00:47]} 8. Qe2 {[%emt 0:01:32]} Be7 {[%emt 0:01:04]} 9. Bg2 {[%emt 0:00:49]} O-O {[%emt 0:00:22]} 10. O-O {[%emt 0:01:12]} Re8 {[%emt 0:05:07]} 11. Bg5 {[%emt 0:09:51]} h6 {[%emt 0:10:47]} 12. Nxf6+ {[%emt 0:03:46]} Nxf6 {[%emt 0:00:08]} 13. Be3 {[%emt 0:00:25]} Bg4 {[%emt 0:03:03]} 14. Bf3 {[%emt 0:04:23]} Be6 {[%emt 0:06:22]} 15. Rfe1 {[%emt 0:08:08]} Rad8 {[%emt 0:03:54]} 16. Rad1 {[%emt 0:13:57]} Bf8 {[%emt 0:03:31]} 17. Bc1 {[%emt 0:12:41]} Bc8 {[%emt 0:10:32]} 18. a3 {[%emt 0:05:54]} Nd5 {[%emt 0:03:24]} 19. Ne4 {[%emt 0:01:07]} f5 {[%emt 0:04:23]} 20. Nd2 {[%emt 0:01:28]} g6 {[%emt 0:02:41]} 21. Nc4 {[%emt 0:05:37]} Bg7 {[%emt 0:00:25]} 22. Qf1 {[%emt 0:00:55]} Qf7 {[%emt 0:03:37]} 23. Qh3 {[%emt 0:02:30]} b5 {[%emt 0:13:24]} 24. Nd2 {[%emt 0:03:02]} e4 {[%emt 0:04:29]} 25. Bh1 {[%emt 0:06:14]} f4 {[%emt 0:00:00]} 26. Qf1 {[%emt 0:00:47]} e3 {[%emt 0:00:00]} 27. Ne4 {[%emt 0:02:10]} Bg4 {[%emt 0:00:00]} 28. fxe3 {[%emt 0:09:23]} Bxd1 {[%emt 0:00:00]} 29. Rxd1 {[%emt 0:00:11]} Nxe3 {[%emt 0:02:02]} 30. Bxe3 {[%emt 0:00:09]} fxe3 {[%emt 0:00:04]} 31. Qxf7+ {[%emt 0:00:19]} Kxf7 {[%emt 0:00:03]} 32. Kf1 {[%emt 0:01:58]} Bxb2 {[%emt 0:00:49]} 33. Rb1 {[%emt 0:01:41]} Bd4 {[%emt 0:01:12]} 34. Ke2 {[%emt 0:00:30]} Bb6 {[%emt 0:00:30]} 35. Nc3 {[%emt 0:00:30]} Rd6 {[%emt 0:00:30]} 36. Be4 {[%emt 0:00:30]} Kg7 {[%emt 0:00:30]} 37. a4 {[%emt 0:00:30]} a6 {[%emt 0:00:30]} 38. Nd1 {[%emt 0:00:30]} Rxe4 {[%emt 0:00:30]} 39. dxe4 {[%emt 0:00:30]} Rd2+ {[%emt 0:00:30]} 40. Kf3 {[%emt 0:00:30]} Rxc2 {[%emt 0:00:30]} 0-1

[Event "DLM Youth 2024"]
[Site "Tuebingen"]
[Date "2024.10.03"]
[Round "1"]
[White "Windmueller, Simon"]
[Black "Nechitaylo, Nikita"]
[Result "1/2-1/2"]
[ECO "A79"]
[WhiteElo "2052"]
[BlackElo "2252"]
[Annotator "RC"]
[PlyCount "87"]
[EventDate "2024.10.03"]
[EventType "team-swiss"]
[EventRounds "7"]
[EventCountry "GER"]
[SourceTitle "playchess.com"]
[Source "ChessBase"]
[SourceQuality "1"]
[TimeControl "40/5400+30:1800+30"]

1. d4 {[%emt 0:00:15]} Nf6 {[%emt 0:00:07]} 2. c4 {[%emt 0:00:11]} e6 {[%emt 0:00:04]} 3. Nf3 {[%emt 0:00:16]} c5 {[%emt 0:00:04]} 4. d5 {[%emt 0:00:09]} d6 {[%emt 0:00:03]} 5. Nc3 {[%emt 0:00:07]} exd5 {[%emt 0:00:03]} 6. cxd5 {[%emt 0:00:06]} g6 {[%emt 0:00:02]} 7. Nd2 {[%emt 0:00:20]} Bg7 {[%emt 0:00:15]} 8. e4 {[%emt 0:00:20]} O-O {[%emt 0:00:24]} 9. Be2 {[%emt 0:01:22]} Re8 {[%emt 0:00:14]} 10. O-O {[%emt 0:00:00]} Na6 {[%emt 0:00:28]} 11. f3 {[%emt 0:00:00]} Nc7 {[%emt 0:00:48]} 12. a4 {[%emt 0:00:28]} b6 {[%emt 0:00:56]} 13. Nc4 {[%emt 0:00:00]} Ba6 {[%emt 0:06:58]} 14. Bd2 Bxc4 {[%emt 0:08:09]} 15. Bxc4 {[%emt 0:01:08]} Nh5 {[%emt 0:00:00]} 16. Be2 {[%emt 0:04:51]} a6 {[%emt 0:00:00]} 17. g4 {[%emt 0:00:39]} Bd4+ {[%emt 0:00:00]} 18. Kg2 {[%emt 0:14:18]} Ng7 19. Bd3 {[%emt 0:00:30]} Rb8 {[%emt 0:35:28]} 20. Ra2 {[%emt 0:06:50]} b5 {[%emt 0:00:03]} 21. axb5 {[%emt 0:02:53]} axb5 {[%emt 0:00:06]} 22. Ne2 {[%emt 0:01:31]} Bf6 23. b3 {[%emt 0:15:17]} Qe7 24. Qc2 {[%emt 0:06:19]} Rec8 25. f4 {[%emt 0:04:53]} h6 26. f5 {[%emt 0:06:15]} g5 27. Ra7 {[%emt 0:00:50]} Nge8 28. h4 {[%emt 0:02:49]} gxh4 {[%emt 0:42:48]} 29. Bxh6 {[%emt 0:02:25]} Bg5 {[%emt 0:00:05]} 30. f6 {[%emt 0:00:34]} Bxf6 31. Rf5 {[%emt 0:01:58]} Ng7 {[%emt 0:02:50]} 32. Bxg7 {[%emt 0:00:00]} Bxg7 {[%emt 0:00:11]} 33. Nf4 {[%emt 0:00:57]} c4 {[%emt 0:00:38]} 34. bxc4 {[%emt 0:00:30]} bxc4 {[%emt 0:00:30]} 35. Qxc4 {[%emt 0:02:06]} Nxd5 {[%emt 0:00:39]} 36. Rxe7 {[%emt 0:02:50]} Ne3+ {[%emt 0:02:55]} 37. Kh3 {[%emt 0:01:10]} Nxc4 {[%emt 0:00:00]} 38. Rfxf7 {[%emt 0:01:15]} Bf8 {[%emt 0:00:00]} 39. Ra7 {[%emt 0:17:32]} Ne5 {[%emt 0:00:00]} 40. Rf5 {[%emt 0:02:53]} Ra8 {[%emt 0:04:59]} 41. Rg5+ {[%emt 0:31:08]} Kh8 {[%emt 0:30:09]} 42. Rh5+ {[%emt 0:02:51]} Kg8 {[%emt 0:00:01]} 43. Rg5+ {[%emt 0:00:15]} Kh8 {[%emt 0:00:02]} 44. Rh5+ {[%emt 0:00:47]} 1/2-1/2

[Event "DLM Youth 2024"]
[Site "Tuebingen"]
[Date "2024.10.03"]
[Round "1"]
[White "Herrmann, Arthur"]
[Black "Aniol, Nico"]
[Result "1/2-1/2"]
[ECO "B15"]
[WhiteElo "2031"]
[BlackElo "1864"]
[Annotator "RC"]
[PlyCount "97"]
[EventDate "2024.10.03"]
[EventType "team-swiss"]
[EventRounds "7"]
[EventCountry "GER"]
[SourceTitle "playchess.com"]
[Source "ChessBase"]
[SourceQuality "1"]
[TimeControl "40/5400+30:1800+30"]

1. e4 {[%emt 0:00:04]} c6 {[%emt 0:00:13]} 2. d4 {[%emt 0:00:10]} d5 {[%emt 0:00:11]} 3. Nc3 {[%emt 0:00:12]} dxe4 {[%emt 0:01:43]} 4. Nxe4 {[%emt 0:00:06]} Nf6 {[%emt 0:00:35]} 5. Nxf6+ {[%emt 0:00:11]} exf6 {[%emt 0:00:06]} 6. c3 {[%emt 0:00:20]} Bd6 {[%emt 0:00:37]} 7. Bd3 {[%emt 0:00:35]} O-O {[%emt 0:00:55]} 8. Qc2 {[%emt 0:00:44]} Re8+ {[%emt 0:02:23]} 9. Ne2 {[%emt 0:00:25]} h5 {[%emt 0:00:27]} 10. O-O {[%emt 0:00:48]} h4 {[%emt 0:03:35]} 11. h3 {[%emt 0:00:40]} Nd7 {[%emt 0:02:19]} 12. Bd2 {[%emt 0:00:40]} Nf8 {[%emt 0:01:12]} 13. Rae1 {[%emt 0:00:31]} Bd7 {[%emt 0:04:17]} 14. Nf4 {[%emt 0:29:07]} Qc7 {[%emt 0:05:07]} 15. Nh5 {[%emt 0:04:21]} Qa5 {[%emt 0:05:55]} 16. Nf4 {[%emt 0:09:31]} Rxe1 {[%emt 0:16:06]} 17. Rxe1 {[%emt 0:00:05]} Qxa2 {[%emt 0:01:24]} 18. c4 {[%emt 0:11:15]} Bxf4 {[%emt 0:10:11]} 19. Bxf4 {[%emt 0:00:20]} Qa5 {[%emt 0:00:04]} 20. Re7 {[%emt 0:11:03]} Re8 {[%emt 0:03:41]} 21. Rxe8 {[%emt 0:01:34]} Bxe8 {[%emt 0:00:07]} 22. Qe2 {[%emt 0:01:32]} Qd8 {[%emt 0:03:02]} 23. Be3 {[%emt 0:05:16]} g5 {[%emt 0:10:07]} 24. f4 {[%emt 0:09:43]} gxf4 {[%emt 0:01:29]} 25. Qg4+ {[%emt 0:03:04]} Ng6 {[%emt 0:00:05]} 26. Bxg6 {[%emt 0:01:21]} fxg6 {[%emt 0:00:05]} 27. Qxf4 {[%emt 0:00:31]} g5 {[%emt 0:01:31]} 28. Qe4 {[%emt 0:01:58]} Bf7 {[%emt 0:01:40]} 29. b3 {[%emt 0:01:59]} Kg7 {[%emt 0:00:41]} 30. Bd2 {[%emt 0:02:06]} b5 {[%emt 0:04:20]} 31. Qd3 {[%emt 0:02:09]} a6 {[%emt 0:01:03]} 32. Bc3 {[%emt 0:00:23]} Qd6 {[%emt 0:02:29]} 33. Kh1 {[%emt 0:03:23]} Qf4 {[%emt 0:02:09]} 34. d5 {[%emt 0:00:46]} bxc4 {[%emt 0:03:30]} 35. bxc4 {[%emt 0:00:02]} cxd5 {[%emt 0:00:09]} 36. cxd5 {[%emt 0:00:02]} Qc1+ {[%emt 0:00:19]} 37. Kh2 Bxd5 38. Bxf6+ {[%emt 0:01:11]} Kxf6 {[%emt 0:00:49]} 39. Qxd5 {[%emt 0:00:03]} Qf4+ {[%emt 0:00:25]} 40. Kh1 {[%emt 0:01:01]} Qf1+ {[%emt 0:00:20]} 41. Kh2 {[%emt 0:02:36]} Qb5 42. Qd8+ {[%emt 0:01:31]} Kf5 {[%emt 0:00:50]} 43. Qf8+ {[%emt 0:00:52]} Ke4 {[%emt 0:00:16]} 44. Qf3+ {[%emt 0:00:15]} Ke5 {[%emt 0:01:01]} 45. Qe3+ {[%emt 0:00:40]} Kd6 {[%emt 0:00:05]} 46. Qd4+ {[%emt 0:00:28]} Kc6 {[%emt 0:01:52]} 47. Qf6+ {[%emt 0:00:56]} Kc7 {[%emt 0:00:14]} 48. Qe7+ {[%emt 0:01:00]} Kc6 {[%emt 0:01:01]} 49. Qf6+ {[%emt 0:00:20]} 1/2-1/2

[Event "DLM Youth 2024"]
[Site "Tuebingen"]
[Date "2024.10.03"]
[Round "1"]
[White "Mueller, Maximilian"]
[Black "Kieselbach, Jannik"]
[Result "1/2-1/2"]
[ECO "D05"]
[WhiteElo "2030"]
[BlackElo "2014"]
[Annotator "RC"]
[PlyCount "73"]
[EventDate "2024.10.03"]
[EventType "team-swiss"]
[EventRounds "7"]
[EventCountry "GER"]
[SourceTitle "playchess.com"]
[Source "ChessBase"]
[SourceQuality "1"]
[TimeControl "40/5400+30:1800+30"]

1. d4 {[%emt 0:00:03]} Nf6 {[%emt 0:00:12]} 2. Nf3 {[%emt 0:00:09]} e6 {[%emt 0:00:20]} 3. e3 {[%emt 0:00:05]} b6 {[%emt 0:01:09]} 4. Bd3 {[%emt 0:01:11]} Bb7 {[%emt 0:00:15]} 5. O-O {[%emt 0:00:19]} Be7 {[%emt 0:01:44]} 6. Nbd2 {[%emt 0:00:11]} d5 {[%emt 0:00:34]} 7. Ne5 {[%emt 0:04:09]} O-O {[%emt 0:05:20]} 8. f4 {[%emt 0:08:51]} Ne4 {[%emt 0:10:53]} 9. Qf3 {[%emt 0:08:25]} f5 {[%emt 0:09:09]} 10. Kh1 {[%emt 0:06:21]} Nd7 {[%emt 0:21:58]} 11. Nxd7 {[%emt 0:00:45]} Qxd7 {[%emt 0:00:40]} 12. Qe2 {[%emt 0:00:18]} Nxd2 {[%emt 0:06:42]} 13. Bxd2 {[%emt 0:00:08]} Kh8 {[%emt 0:11:57]} 14. Rf3 {[%emt 0:00:30]} Rf7 {[%emt 0:00:31]} 15. Rg1 {[%emt 0:00:17]} Raf8 {[%emt 0:04:04]} 16. Rh3 {[%emt 0:04:08]} g6 {[%emt 0:03:40]} 17. g4 {[%emt 0:04:16]} Bf6 {[%emt 0:02:43]} 18. Be1 {[%emt 0:06:32]} Rg8 {[%emt 0:02:23]} 19. Qg2 {[%emt 0:08:02]} Rgg7 {[%emt 0:02:09]} 20. Rf3 {[%emt 0:00:28]} Qd8 {[%emt 0:03:49]} 21. g5 {[%emt 0:03:38]} Be7 {[%emt 0:00:07]} 22. h4 {[%emt 0:00:04]} Kg8 {[%emt 0:02:10]} 23. Rh3 {[%emt 0:01:19]} Kf8 {[%emt 0:01:00]} 24. h5 {[%emt 0:00:27]} Ke8 {[%emt 0:01:41]} 25. Qe2 {[%emt 0:08:19]} Kd7 {[%emt 0:00:55]} 26. Rg2 {[%emt 0:00:23]} Kc8 {[%emt 0:00:07]} 27. Rgh2 {[%emt 0:00:35]} Kb8 {[%emt 0:01:31]} 28. c3 {[%emt 0:07:54]} Rg8 {[%emt 0:00:52]} 29. b4 {[%emt 0:01:20]} c5 {[%emt 0:01:36]} 30. bxc5 {[%emt 0:01:31]} bxc5 {[%emt 0:00:06]} 31. Qb2 {[%emt 0:04:20]} c4 {[%emt 0:00:31]} 32. Bc2 {[%emt 0:00:05]} Qd7 {[%emt 0:03:23]} 33. hxg6 {[%emt 0:01:36]} hxg6 {[%emt 0:00:06]} 34. Rh8 {[%emt 0:00:30]} Rxh8 {[%emt 0:01:35]} 35. Rxh8+ {[%emt 0:00:06]} Bf8 {[%emt 0:00:32]} 36. Kg2 {[%emt 0:02:24]} Kc7 {[%emt 0:01:21]} 37. Bd2 {[%emt 0:01:53]} 1/2-1/2

[Event "DLM Youth 2024"]
[Site "Tuebingen"]
[Date "2024.10.03"]
[Round "1"]
[White "Mueller, Riyanna"]
[Black "Sereda, Yaroslava"]
[Result "0-1"]
[ECO "B22"]
[WhiteElo "2014"]
[BlackElo "1972"]
[Annotator "RC"]
[PlyCount "126"]
[EventDate "2024.10.03"]
[EventType "team-swiss"]
[EventRounds "7"]
[EventCountry "GER"]
[SourceTitle "playchess.com"]
[Source "ChessBase"]
[SourceQuality "1"]
[TimeControl "40/5400+30:1800+30"]

1. e4 {[%emt 0:00:03]} c5 {[%emt 0:00:04]} 2. c3 {[%emt 0:00:06]} Nf6 {[%emt 0:00:05]} 3. e5 {[%emt 0:00:11]} Nd5 {[%emt 0:00:06]} 4. d4 {[%emt 0:00:16]} cxd4 {[%emt 0:00:16]} 5. Nf3 {[%emt 0:00:31]} Nc6 {[%emt 0:00:33]} 6. cxd4 {[%emt 0:00:32]} d6 {[%emt 0:00:20]} 7. Bc4 {[%emt 0:00:38]} Nb6 {[%emt 0:00:21]} 8. Bb5 {[%emt 0:00:59]} Bd7 {[%emt 0:00:16]} 9. Nc3 {[%emt 0:01:45]} dxe5 {[%emt 0:00:27]} 10. dxe5 {[%emt 0:00:31]} g6 {[%emt 0:00:31]} 11. O-O {[%emt 0:01:08]} Bg7 {[%emt 0:01:55]} 12. Qe2 {[%emt 0:03:07]} O-O {[%emt 0:02:08]} 13. Bf4 {[%emt 0:04:42]} a6 {[%emt 0:04:30]} 14. Bxc6 {[%emt 0:03:05]} Bxc6 {[%emt 0:00:23]} 15. Rad1 {[%emt 0:05:11]} Nd5 {[%emt 0:06:39]} 16. Nxd5 {[%emt 0:00:40]} Bxd5 {[%emt 0:00:06]} 17. Ng5 {[%emt 0:23:52]} Qa5 {[%emt 0:18:15]} 18. b3 {[%emt 0:13:44]} Bc6 {[%emt 0:29:12]} 19. Rfe1 {[%emt 0:16:14]} e6 {[%emt 0:10:24]} 20. h4 {[%emt 0:06:08]} h6 {[%emt 0:06:59]} 21. Ne4 {[%emt 0:03:13]} Bxe4 {[%emt 0:03:28]} 22. Qxe4 {[%emt 0:00:05]} Qxa2 {[%emt 0:03:39]} 23. Rd3 {[%emt 0:00:45]} Rad8 {[%emt 0:02:31]} 24. Rh3 {[%emt 0:05:07]} Qb2 {[%emt 0:02:46]} 25. h5 {[%emt 0:02:10]} g5 {[%emt 0:02:19]} 26. Bxg5 {[%emt 0:00:47]} hxg5 {[%emt 0:01:07]} 27. h6 {[%emt 0:00:08]} Rd4 {[%emt 0:03:47]} 28. Qe3 {[%emt 0:00:56]} Qd2 {[%emt 0:00:32]} 29. hxg7 {[%emt 0:00:13]} Kxg7 {[%emt 0:00:15]} 30. Qxd2 {[%emt 0:02:09]} Rxd2 {[%emt 0:00:01]} 31. Rg3 {[%emt 0:00:36]} Kh6 {[%emt 0:01:22]} 32. Re4 {[%emt 0:00:33]} Rfd8 {[%emt 0:00:30]} 33. f4 {[%emt 0:02:00]} R8d4 {[%emt 0:00:32]} 34. fxg5+ {[%emt 0:01:16]} Kg6 {[%emt 0:00:12]} 35. Ree3 {[%emt 0:02:59]} Rd1+ {[%emt 0:00:42]} 36. Kh2 {[%emt 0:00:39]} Rh4+ {[%emt 0:00:25]} 37. Rh3 {[%emt 0:00:07]} Rxh3+ {[%emt 0:00:39]} 38. gxh3 {[%emt 0:00:13]} Kxg5 {[%emt 0:00:19]} 39. Rf3 {[%emt 0:00:36]} Kg6 {[%emt 0:00:34]} 40. Kg3 {[%emt 0:00:35]} Rd4 {[%emt 0:00:36]} 41. Re3 {[%emt 0:30:28]} b5 {[%emt 0:03:55]} 42. Kf2 {[%emt 0:00:00]} Kf5 {[%emt 0:07:16]} 43. Kg3 {[%emt 0:00:00]} a5 {[%emt 0:00:43]} 44. h4 {[%emt 0:00:00]} Kg6 {[%emt 0:05:29]} 45. Kh3 {[%emt 0:00:00]} Kh5 {[%emt 0:00:40]} 46. Rf3 {[%emt 0:00:00]} Rxh4+ {[%emt 0:00:06]} 47. Kg3 {[%emt 0:00:00]} Rg4+ {[%emt 0:00:27]} 48. Kh3 {[%emt 0:00:00]} Re4 {[%emt 0:04:17]} 49. Rxf7 {[%emt 0:00:00]} Rxe5 {[%emt 0:06:05]} 50. Ra7 {[%emt 0:00:00]} Re3+ {[%emt 0:01:06]} 51. Kg2 {[%emt 0:00:00]} Rxb3 {[%emt 0:00:17]} 52. Rxa5 {[%emt 0:00:00]} Kg4 {[%emt 0:00:06]} 53. Kf2 {[%emt 0:00:00]} Kf4 {[%emt 0:00:11]} 54. Ke2 {[%emt 0:00:00]} Ke4 {[%emt 0:00:54]} 55. Kd2 {[%emt 0:00:00]} Kd4 {[%emt 0:00:35]} 56. Kc2 {[%emt 0:00:00]} Rb4 {[%emt 0:03:29]} 57. Ra6 {[%emt 0:00:00]} e5 {[%emt 0:00:21]} 58. Rd6+ {[%emt 0:00:00]} Ke4 {[%emt 0:01:04]} 59. Rb6 {[%emt 0:00:00]} Ke3 {[%emt 0:01:12]} 60. Rh6 {[%emt 0:00:00]} e4 {[%emt 0:00:41]} 61. Rh3+ {[%emt 0:00:00]} Kd4 {[%emt 0:00:37]} 62. Rh8 {[%emt 0:00:00]} Rc4+ {[%emt 0:00:13]} 63. Kd1 {[%emt 0:00:00]} b4 {[%emt 0:00:34]} 0-1